bitfinex/quotes_BTCUSD_20250124
["timestamp","ask_amount","ask_price","bid_price","bid_amount"]
[1737740100350,0.55678581,106280.0,106270.0,0.00042498]
[1737740101006,0.40678581,106280.0,106270.0,0.00042498]
[1737740102969,0.26564981,106280.0,106270.0,0.00042498]
[1737740103176,0.40678581,106280.0,106270.0,0.00042498]
[1737740105709,0.26564981,106280.0,106270.0,0.00042498]
[1737740105903,0.40678581,106280.0,106270.0,0.00042498]
[1737740109470,0.26564981,106280.0,106270.0,0.00042498]
[1737740109664,0.12629539,106280.0,106270.0,0.14157398]
[1737740110032,0.0105227,106280.0,106270.0,0.21697398]
[1737740110286,0.00104,106280.0,106270.0,0.21697398]
[1737740110711,0.00104,106280.0,106270.0,0.26437398]
[1737740111538,4e-05,106280.0,106270.0,0.26437398]
[1737740111748,0.00104,106280.0,106270.0,0.26437398]
[1737740113660,4e-05,106280.0,106270.0,0.26437398]
[1737740113882,4e-05,106280.0,106270.0,0.36172127]
[1737740114089,0.00104,106280.0,106270.0,0.36172127]
[1737740114682,0.00104,106280.0,106270.0,0.51172127]
[1737740114890,0.00104,106280.0,106270.0,0.54082043]
[1737740115348,0.00133779,106280.0,106270.0,0.54082043]
[1737740115550,0.00033779,106280.0,106270.0,0.54082043]
[1737740115769,0.00133779,106280.0,106270.0,0.54082043]
[1737740116667,0.00129779,106280.0,106270.0,0.54082043]
[1737740118462,0.00029779,106280.0,106270.0,0.55014538]
[1737740119395,0.00129779,106280.0,106270.0,0.55014538]
[1737740120588,0.00129779,106280.0,106270.0,0.87264538]
[1737740120955,0.001,106280.0,106270.0,0.87264538]
[1737740123308,0.001,106280.0,106270.0,0.77529809]
[1737740124555,0.001,106280.0,106270.0,0.74619893]
[1737740124749,0.001,106280.0,106270.0,0.77525872]
[1737740126507,0.001,106280.0,106270.0,0.87260601]
[1737740127666,0.00129779,106280.0,106270.0,0.87260601]
[1737740128236,0.00029779,106280.0,106270.0,0.87260601]
[1737740130671,0.00029779,106280.0,106270.0,0.77525872]
[1737740130863,0.00029779,106280.0,106270.0,0.74619893]
[1737740131448,0.00029779,106280.0,106270.0,0.84354622]
[1737740131661,0.00029779,106280.0,106270.0,0.87263651]
[1737740133228,0.000298,106290.0,106280.0,0.217536]
[1737740135095,0.001298,106290.0,106280.0,0.217536]
[1737740135469,0.001298,106290.0,106280.0,0.24663253]
[1737740135671,0.001298,106290.0,106280.0,0.34397982]
[1737740136431,0.001298,106290.0,106280.0,0.81647982]
[1737740136664,0.001,106290.0,106280.0,0.86587982]
[1737740137845,0.32044,106320.0,106310.0,0.141096]
[1737740138082,0.09738729,106320.0,106310.0,0.141096]
[1737740138299,4e-05,106320.0,106310.0,0.14203658]
[1737740138767,4e-05,106320.0,106310.0,0.141096]
[1737740138989,4e-05,106320.0,106310.0,0.14203645]
[1737740138990,8.887e-05,106320.0,106310.0,0.14203645]
[1737740139419,8.887e-05,106320.0,106310.0,0.21883645]
[1737740139556,0.00108887,106320.0,106310.0,0.2469803]
[1737740139997,0.00138666,106320.0,106310.0,0.49432759]
[1737740140536,0.00138666,106320.0,106310.0,0.3969803]
[1737740140969,0.00038666,106320.0,106310.0,0.3969803]
[1737740141110,0.00138666,106320.0,106310.0,0.3969803]
[1737740141750,0.00238666,106320.0,106310.0,0.3969803]
[1737740142709,0.00238666,106320.0,106310.0,0.2469803]
[1737740142905,0.00238666,106320.0,106310.0,0.25631059]
[1737740144027,0.040338,106330.0,106320.0,0.141083]
[1737740144873,0.040338,106330.0,106320.0,0.14202342]
[1737740145084,0.040338,106330.0,106320.0,0.141083]
[1737740145300,0.041338,106330.0,106320.0,0.14202342]
[1737740147117,0.040338,106330.0,106320.0,0.14202342]
[1737740147306,0.041338,106330.0,106320.0,0.52087071]
[1737740147511,0.041338,106330.0,106320.0,0.54901641]
[1737740147884,0.00029779,106350.0,106340.0,0.141056]
[1737740148090,0.00029779,106350.0,106340.0,0.2197962]
[1737740148324,0.00029779,106350.0,106340.0,0.218856]
[1737740150670,0.00034671,106350.0,106340.0,0.218856]
[1737740151050,0.00134671,106350.0,106340.0,0.218856]
[1737740151399,0.00034671,106350.0,106340.0,0.218856]
[1737740151735,0.00134671,106350.0,106340.0,0.218856]
[1737740154349,0.00034671,106350.0,106340.0,0.218856]
[1737740154603,0.00034671,106350.0,106340.0,0.418256]
[1737740154804,0.00034671,106350.0,106340.0,0.51560329]
[1737740155027,0.00134671,106350.0,106340.0,0.54458458]
[1737740155248,0.00134671,106350.0,106340.0,0.86708458]
[1737740155441,0.00034671,106350.0,106340.0,0.86708458]
[1737740155846,0.00134671,106350.0,106340.0,0.86708458]
[1737740156429,0.00134671,106350.0,106340.0,0.89008458]
[1737740158146,0.00034671,106350.0,106340.0,0.89008458]
[1737740158351,0.00134671,106350.0,106340.0,0.89008458]
[1737740158908,0.00234671,106350.0,106340.0,0.89008458]
[1737740159515,0.00234671,106350.0,106340.0,0.86708458]
[1737740160254,0.00234671,106350.0,106340.0,0.76973729]
[1737740160378,0.00234671,106350.0,106340.0,0.740756]
[1737740160597,0.00234671,106350.0,106340.0,0.83810329]
[1737740161015,0.00234671,106350.0,106340.0,0.86110329]
[1737740161242,0.00234671,106350.0,106340.0,0.89003915]
[1737740161462,0.00238671,106350.0,106340.0,0.89003915]
[1737740162628,0.00238671,106350.0,106340.0,0.74003915]
[1737740163038,0.00238671,106350.0,106340.0,0.89003915]
[1737740163894,0.00038671,106350.0,106340.0,0.90003915]
[1737740164083,7.1e-07,106350.0,106340.0,0.90003915]
[1737740164308,7.1e-07,106350.0,106340.0,0.92003915]
[1737740164516,7.1e-07,106350.0,106340.0,1.45363915]
[1737740164713,0.005298,106390.0,106380.0,0.141003]
[1737740164938,0.00534693,106390.0,106380.0,0.14194291]
[1737740165984,0.00634693,106390.0,106380.0,0.14194291]
[1737740166923,0.00534693,106390.0,106380.0,0.14194291]
[1737740168320,0.00538693,106390.0,106380.0,0.14194291]
[1737740168953,0.00538693,106390.0,106380.0,0.15126512]
[1737740170276,0.00538693,106390.0,106380.0,0.30126512]
[1737740170476,0.00538693,106390.0,106380.0,0.30032521]
[1737740175880,0.00538693,106390.0,106380.0,0.141003]
[1737740177614,0.18363422,106390.0,106370.0,0.329016]
[1737740177823,0.18363422,106390.0,106370.0,0.141016]
[1737740177824,0.51261622,106390.0,106370.0,0.141016]
[1737740178081,0.14694729,106380.0,106360.0,0.188031]
[1737740178201,0.14694729,106380.0,106370.0,0.141017]
[1737740179222,0.10551082,106390.0,106380.0,0.141003]
[1737740179445,0.18363422,106390.0,106380.0,0.141003]
[1737740179613,0.08628693,106390.0,106380.0,0.141003]
[1737740179819,0.00538693,106390.0,106380.0,0.141003]
[1737740180021,0.00538693,106390.0,106380.0,0.14194293]
[1737740180460,0.00538693,106390.0,106380.0,0.141003]
[1737740181286,0.10273422,106390.0,106380.0,0.141003]
[1737740183409,0.10273422,106390.0,106370.0,0.705047]
[1737740183623,0.10273422,106390.0,106370.0,0.517034]
[1737740184228,0.10273422,106390.0,106380.0,0.141003]
[1737740185627,0.00538693,106390.0,106380.0,0.141003]
[1737740186146,0.10273422,106390.0,106380.0,0.141003]
[1737740188302,0.10273422,106390.0,106370.0,0.517034]
[1737740188726,0.10273422,106390.0,106370.0,0.705048]
[1737740188961,0.10273422,106390.0,106370.0,0.517034]
[1737740189165,0.10273422,106390.0,106380.0,0.141003]
[1737740189918,0.10273422,106390.0,106370.0,0.517034]
[1737740190118,0.09734729,106380.0,106370.0,0.329024]
[1737740190986,0.09734729,106380.0,106360.0,0.594993]
[1737740191216,0.09734729,106380.0,106370.0,0.141017]
[1737740191433,0.09734729,106380.0,106360.0,0.141022]
[1737740191658,0.55836029,106380.0,106350.0,0.5172707]
[1737740191855,0.60536629,106380.0,106350.0,0.3292257]
[1737740192062,0.74637929,106380.0,106350.0,0.5172767]
[1737740192266,0.74637929,106380.0,106350.0,0.5172757]
[1737740192500,0.74637929,106380.0,106350.0,0.7053237]
[1737740192723,0.74637929,106380.0,106350.0,0.5172737]
[1737740192912,0.74637929,106380.0,106350.0,0.7053227]
[1737740193779,0.55836729,106380.0,106360.0,0.141027]
[1737740194183,0.55836729,106380.0,106350.0,0.5172737]
[1737740194644,0.55836729,106380.0,106350.0,0.7053227]
[1737740195262,0.01869703,106370.0,106350.0,0.7053227]
[1737740195440,0.11604432,106370.0,106350.0,0.7053227]
[1737740195669,0.11604432,106370.0,106350.0,0.5172737]
[1737740195865,0.11604432,106370.0,106350.0,0.7053227]
[1737740197830,0.11604432,106370.0,106350.0,0.5172737]
[1737740198457,0.09734729,106360.0,106350.0,0.1881897]
[1737740202308,0.13497229,106360.0,106350.0,0.1881897]
[1737740202469,0.01869703,106370.0,106350.0,0.1881897]
[1737740202674,0.11604432,106370.0,106350.0,0.5172727]
[1737740202869,0.09734729,106360.0,106350.0,0.1881897]
[1737740204489,0.05632003,106370.0,106350.0,0.5172687]
[1737740204713,0.13497029,106370.0,106360.0,0.22343]
[1737740205031,0.13497029,106370.0,106360.0,0.14103]
[1737740205390,0.09734729,106370.0,106360.0,0.14103]
[1737740205592,0.09734729,106370.0,106350.0,0.1881887]
[1737740205804,0.09734729,106370.0,106350.0,0.5172727]
[1737740206235,0.09734729,106370.0,106350.0,0.3292227]
[1737740206611,0.09734729,106370.0,106350.0,0.5172807]
[1737740207289,0.09734729,106370.0,106350.0,0.7053297]
[1737740207505,0.09734729,106370.0,106350.0,0.5172717]
[1737740207659,0.09734729,106370.0,106350.0,0.7053197]
[1737740208062,0.09734729,106370.0,106350.0,0.5172707]
[1737740208588,0.09738729,106370.0,106350.0,0.5172707]
[1737740209304,0.09738729,106370.0,106350.0,0.5172797]
[1737740209658,0.09738729,106370.0,106350.0,0.7053277]
[1737740210121,0.09738729,106370.0,106360.0,0.14103]
[1737740210951,0.09738729,106370.0,106350.0,0.5172807]
[1737740211279,0.09738729,106370.0,106350.0,0.3292227]
[1737740211452,0.09734729,106360.0,106350.0,0.3292227]
[1737740211655,0.09734729,106360.0,106350.0,0.1881887]
[1737740216308,0.09734729,106360.0,106350.0,0.0001417]
[1737740217151,0.23837729,106360.0,106350.0,0.0001417]
[1737740217367,0.32107729,106360.0,106350.0,0.0001417]
[1737740217951,0.47107729,106360.0,106350.0,0.0001417]
[1737740220494,0.24734729,106360.0,106350.0,0.1411847]
[1737740220694,0.10673391,106360.0,106350.0,0.0883417]
[1737740220899,0.24776391,106360.0,106350.0,0.0054417]
[1737740221371,0.24676391,106360.0,106350.0,0.0054417]
[1737740221988,0.32354721,106360.0,106350.0,0.0054417]
[1737740222318,0.47354721,106360.0,106350.0,0.0054417]
[1737740225281,0.39624721,106360.0,106350.0,0.0054417]
[1737740226022,0.49793963,106360.0,106350.0,0.0054417]
[1737740226269,0.54473963,106360.0,106350.0,0.0054417]
[1737740226715,0.563103,106360.0,106350.0,0.0054417]
[1737740227105,0.46141058,106360.0,106350.0,0.0054417]
[1737740227723,0.27358058,106360.0,106350.0,0.0054417]
[1737740227946,0.10521721,106360.0,106350.0,0.2261847]
[1737740228407,0.01906938,106370.0,106350.0,0.2261847]
[1737740228617,0.11641667,106370.0,106350.0,0.6482807]
[1737740229232,0.11641667,106370.0,106350.0,0.4602297]
[1737740229600,0.11641667,106370.0,106350.0,0.6482877]
[1737740230264,0.12569299,106370.0,106350.0,0.6482877]
[1737740232479,0.26670999,106370.0,106350.0,0.2721847]
[1737740232666,0.26670999,106370.0,106350.0,0.4602407]
[1737740232908,0.12569299,106370.0,106350.0,0.4602407]
[1737740233317,0.12569299,106370.0,106350.0,0.6482987]
[1737740234154,0.12569299,106370.0,106350.0,0.4602407]
[1737740234355,0.09734729,106360.0,106350.0,0.1311417]
[1737740234715,0.38837729,106360.0,106350.0,0.0054417]
[1737740238286,0.47097729,106360.0,106350.0,0.0054417]
[1737740239007,0.42963929,106360.0,106350.0,0.0054417]
[1737740242107,0.53133171,106360.0,106350.0,0.0054417]
[1737740242725,0.42963929,106360.0,106350.0,0.0054417]
[1737740243551,0.34703929,106360.0,106350.0,0.0054417]
[1737740245858,0.44873171,106360.0,106350.0,0.0054417]
[1737740246199,0.34733687,106360.0,106350.0,0.0054417]
[1737740249365,0.00029758,106360.0,106350.0,0.2705847]
[1737740249975,0.23867487,106360.0,106350.0,0.1295417]
[1737740250352,0.23867487,106360.0,106350.0,0.0817417]
[1737740251589,0.23867487,106360.0,106350.0,0.0054417]
[1737740251846,0.38867487,106360.0,106350.0,0.0054417]
[1737740253314,0.49036729,106360.0,106350.0,0.0054417]
[1737740254139,0.38867487,106360.0,106350.0,0.0054417]
[1737740255266,0.24764487,106360.0,106350.0,0.0054417]
[1737740255495,0.09764487,106360.0,106350.0,0.2690847]
[1737740256128,0.00029758,106360.0,106350.0,0.2690847]
[1737740256338,0.00029758,106360.0,106350.0,0.29825353]
[1737740256543,0.00029758,106360.0,106350.0,0.2690847]
[1737740256767,0.00029758,106360.0,106350.0,0.29824605]
[1737740257613,0.09764487,106360.0,106350.0,0.29824605]
[1737740260114,0.09764487,106360.0,106350.0,0.15720305]
[1737740260838,0.23867487,106360.0,106350.0,0.11210305]
[1737740262166,0.09764487,106360.0,106350.0,0.11210305]
[1737740262342,0.09764487,106360.0,106350.0,0.0829417]
[1737740262590,0.23867487,106360.0,106350.0,0.0829417]
[1737740262980,0.23867487,106360.0,106350.0,0.0054417]
[1737740263242,0.39790707,106360.0,106350.0,0.0054417]
[1737740265573,0.49959949,106360.0,106350.0,0.0054417]
[1737740266815,0.39790707,106360.0,106350.0,0.0054417]
[1737740267073,0.41693749,106360.0,106350.0,0.0054417]
[1737740275433,0.51862991,106360.0,106350.0,0.0054417]
[1737740275639,0.59702991,106360.0,106350.0,0.0054417]
[1737740277791,0.59902991,106360.0,106350.0,0.0054417]
[1737740278207,0.42729749,106360.0,106350.0,0.0054417]
[1737740279123,0.42829749,106360.0,106350.0,0.0054417]
[1737740279344,0.41993749,106360.0,106350.0,0.0054417]
[1737740281229,0.12890749,106360.0,106350.0,0.2294847]
[1737740281429,0.10987707,106360.0,106350.0,0.2294847]
[1737740281834,0.10987707,106360.0,106350.0,0.0884417]
[1737740282439,0.10887707,106360.0,106350.0,0.0884417]
[1737740283450,0.10687707,106360.0,106350.0,0.0884417]
[1737740284186,0.10687707,106360.0,106350.0,0.2294847]
[1737740285058,0.10687707,106360.0,106350.0,0.0884417]
[1737740285831,0.10687707,106360.0,106350.0,0.2294847]
[1737740286370,0.00029758,106360.0,106350.0,0.2775847]
[1737740286883,0.09764487,106360.0,106350.0,0.1365417]
[1737740287384,0.09764487,106360.0,106350.0,0.2775847]
[1737740287734,0.09764487,106360.0,106350.0,0.1365417]
[1737740287930,0.23867487,106360.0,106350.0,0.1365417]
[1737740288133,0.09764487,106360.0,106350.0,0.1365417]
[1737740288344,0.09764487,106360.0,106350.0,0.2775847]
[1737740289395,0.00029758,106360.0,106350.0,0.2775847]
[1737740289994,0.00029758,106360.0,106350.0,0.30674188]
[1737740290399,0.00029758,106360.0,106350.0,0.2775847]
[1737740292399,0.00029758,106360.0,106350.0,0.28719362]
[1737740294412,0.00029758,106360.0,106350.0,0.31633767]
[1737740294617,0.00029758,106360.0,106350.0,0.41368496]
[1737740297529,0.00029758,106360.0,106350.0,0.31633767]
[1737740299809,0.00029758,106360.0,106350.0,0.41368496]
[1737740311011,0.00029758,106360.0,106350.0,0.56368496]
[1737740314113,0.00029758,106360.0,106350.0,0.58668496]
[1737740316344,0.00033758,106370.0,106360.0,0.19403]
[1737740316551,0.00033758,106370.0,106360.0,0.39816109]
[1737740316890,0.00033758,106370.0,106360.0,0.39722134]
[1737740317500,0.00033758,106370.0,106360.0,0.29987405]
[1737740317705,0.00033758,106370.0,106360.0,0.27073]
[1737740320481,0.00033758,106370.0,106360.0,0.2997939]
[1737740322385,0.00033758,106370.0,106360.0,0.14103]
[1737740322611,0.00033758,106370.0,106360.0,0.14197003]
[1737740322848,0.00033758,106370.0,106360.0,0.14103]
[1737740324982,0.36410987,106370.0,106350.0,0.0054417]
[1737740325188,0.28697729,106360.0,106350.0,0.0054417]
[1737740325390,0.36357729,106360.0,106350.0,0.0054417]
[1737740325799,0.22254729,106360.0,106350.0,0.0054417]
[1737740326512,0.36357729,106360.0,106350.0,0.0054417]
[1737740328826,0.37306468,106360.0,106350.0,0.0054417]
[1737740329415,0.39943557,106360.0,106350.0,0.0054417]
[1737740329618,0.37306468,106360.0,106350.0,0.0054417]
[1737740330782,0.23203468,106360.0,106350.0,0.0054417]
[1737740331160,0.37306468,106360.0,106350.0,0.0054417]
[1737740334005,0.6477571,106360.0,106350.0,0.0054417]
[1737740334209,0.71832736,106360.0,106350.0,0.0054417]
[1737740334417,0.6577571,106360.0,106350.0,0.0054417]
[1737740334831,0.6777571,106360.0,106350.0,0.0054417]
[1737740335470,0.6577571,106360.0,106350.0,0.0054417]
[1737740335955,0.6587571,106360.0,106350.0,0.0054417]
[1737740336191,0.6787571,106360.0,106350.0,0.0054417]
[1737740336396,0.6867571,106360.0,106350.0,0.0054417]
[1737740336780,0.6957571,106360.0,106350.0,0.0064417]
[1737740337088,0.69605489,106360.0,106350.0,0.0064417]
[1737740340645,0.76774731,106360.0,106350.0,0.0064417]
[1737740340839,0.79546845,106360.0,106350.0,0.0064417]
[1737740341771,0.69377603,106360.0,106350.0,0.0064417]
[1737740342365,0.66605489,106360.0,106350.0,0.0064417]
[1737740344789,0.66605489,106360.0,106350.0,7e-07]
[1737740346001,0.298556,106340.0,106330.0,0.0001418]
[1737740346174,0.81595571,106340.0,106330.0,0.0001418]
[1737740346651,0.19407,106330.0,106320.0,0.0001418]
[1737740346858,0.80760971,106330.0,106320.0,0.0001418]
[1737740347290,0.80760971,106330.0,106320.0,4.892e-05]
[1737740347291,0.93760971,106330.0,106320.0,4.892e-05]
[1737740347499,0.93760971,106330.0,106320.0,9.2e-07]
[1737740347500,1.03930213,106330.0,106320.0,9.2e-07]
[1737740347918,0.79238142,106330.0,106320.0,9.2e-07]
[1737740348327,0.15,106300.0,106280.0,0.0796]
[1737740348532,0.34016271,106290.0,106280.0,0.07928308]
[1737740348745,0.23847029,106290.0,106280.0,0.07928308]
[1737740350315,0.23847029,106290.0,106270.0,0.0001419]
[1737740350316,0.173,106280.0,106270.0,0.0001419]
[1737740350518,0.51317571,106280.0,106270.0,0.00023392]
[1737740350718,0.38848329,106280.0,106270.0,0.00023392]
[1737740350924,0.23848329,106280.0,106270.0,0.00023392]
[1737740351556,0.23848329,106280.0,106270.0,0.07983392]
[1737740351734,0.09734729,106280.0,106270.0,0.07983392]
[1737740351931,0.09734729,106280.0,106270.0,0.12693392]
[1737740352131,0.09734729,106280.0,106270.0,0.26808292]
[1737740353033,0.09734729,106280.0,106270.0,0.26908292]
[1737740353586,0.09734729,106280.0,106270.0,0.26808292]
[1737740353809,0.09734729,106280.0,106270.0,0.12793392]
[1737740354992,0.23848329,106280.0,106270.0,0.12793392]
[1737740355194,0.09734729,106280.0,106270.0,0.12793392]
[1737740355400,0.23848329,106280.0,106270.0,0.12793392]
[1737740355608,0.23848329,106280.0,106270.0,0.08083392]
[1737740355609,0.34017571,106280.0,106270.0,0.08083392]
[1737740355831,0.23848329,106280.0,106270.0,0.08083392]
[1737740356424,0.36317571,106280.0,106270.0,0.00123392]
[1737740356624,0.36317571,106280.0,106270.0,0.00023392]
[1737740356824,0.26148329,106280.0,106270.0,0.00023392]
[1737740357026,0.29914329,106280.0,106270.0,0.00123392]
[1737740357353,0.29914329,106280.0,106270.0,0.07683392]
[1737740357488,0.27614329,106280.0,106270.0,0.07683392]
[1737740358109,0.29914329,106280.0,106270.0,0.00123392]
[1737740359538,0.55083571,106280.0,106270.0,0.00123392]
[1737740360258,0.56951127,106280.0,106270.0,0.00123392]
[1737740360484,0.57951127,106280.0,106270.0,0.00123392]
[1737740361045,0.56951127,106280.0,106270.0,0.00123392]
[1737740361266,0.57951127,106280.0,106270.0,0.00123392]
[1737740361461,0.56951127,106280.0,106270.0,0.00023392]
[1737740361700,0.46781885,106280.0,106270.0,0.00023392]
[1737740362000,0.48611685,106280.0,106270.0,0.00023392]
[1737740362226,0.47711685,106280.0,106270.0,0.25023392]
[1737740362352,0.57880927,106280.0,106270.0,0.25023392]
[1737740362575,0.58380927,106280.0,106270.0,0.25023392]
[1737740363222,0.59216927,106280.0,106270.0,0.25023392]
[1737740363403,0.49047685,106280.0,106270.0,0.25023392]
[1737740364863,0.59216927,106280.0,106270.0,0.25023392]
[1737740365507,0.60212927,106280.0,106270.0,0.25023392]
[1737740368063,0.50043685,106280.0,106270.0,0.25023392]
[1737740368840,0.49207685,106280.0,106270.0,0.25023392]
[1737740369045,0.50043685,106280.0,106270.0,0.25023392]
[1737740369241,0.50043685,106280.0,106270.0,0.33293392]
[1737740371891,0.50043685,106280.0,106270.0,0.25023392]
[1737740371892,0.60212927,106280.0,106270.0,0.25023392]
[1737740373635,0.59376927,106280.0,106270.0,0.25023392]
[1737740373967,0.49207685,106280.0,106270.0,0.25023392]
[1737740377215,0.59376927,106280.0,106270.0,0.25023392]
[1737740378957,0.67306927,106280.0,106270.0,0.25023392]
[1737740380794,0.58137685,106280.0,106270.0,0.25023392]
[1737740381415,0.49207685,106280.0,106270.0,0.25023392]
[1737740381728,0.49207685,106280.0,106270.0,0.32753392]
[1737740382124,0.60376927,106280.0,106270.0,0.25023392]
[1737740382349,0.49207685,106280.0,106270.0,0.25023392]
[1737740382554,0.49207685,106280.0,106270.0,0.32713392]
[1737740385120,0.46907685,106280.0,106270.0,0.32713392]
[1737740385703,0.43141685,106280.0,106270.0,0.32713392]
[1737740387429,0.45441685,106280.0,106270.0,0.32713392]
[1737740387633,0.513763,106280.0,106270.0,0.25023392]
[1737740387798,0.45441685,106280.0,106270.0,0.25023392]
[1737740392668,0.45441685,106280.0,106270.0,0.33123392]
[1737740396352,0.45441685,106280.0,106270.0,0.25023392]
[1737740400760,0.28141685,106280.0,106270.0,0.38293392]
[1737740401569,0.024258,106280.0,106270.0,0.52408292]
[1737740401748,0.011258,106280.0,106270.0,0.52408292]
[1737740402138,0.011258,106280.0,106270.0,0.55332136]
[1737740402139,0.012258,106280.0,106270.0,0.55332136]
[1737740402548,0.012258,106280.0,106270.0,0.52408292]
[1737740402955,0.10960529,106280.0,106270.0,0.52408292]
[1737740403159,0.10960529,106280.0,106270.0,0.38293392]
[1737740403160,0.25074129,106280.0,106270.0,0.38293392]
[1737740403416,0.24874129,106280.0,106270.0,0.38393392]
[1737740405233,0.10760529,106280.0,106270.0,0.38393392]
[1737740406429,0.10760529,106280.0,106270.0,0.52508292]
[1737740406677,0.10760529,106280.0,106270.0,0.38393392]
[1737740407236,0.10760529,106280.0,106270.0,0.52508292]
[1737740407640,0.010258,106280.0,106270.0,0.52508292]
[1737740408020,0.03839437,106280.0,106270.0,0.52508292]
[1737740409510,0.010258,106280.0,106270.0,0.67508292]
[1737740409735,0.010258,106280.0,106270.0,0.67408292]
[1737740409939,0.010258,106280.0,106270.0,0.67508292]
[1737740410707,0.02813637,106300.0,106290.0,0.264223]
[1737740412043,0.1411,106310.0,106290.0,0.264223]
[1737740412334,0.23844729,106310.0,106290.0,0.828686]
[1737740412638,0.24796006,106310.0,106300.0,0.0783]
[1737740413567,0.14111,106300.0,106290.0,0.1256]
[1737740413770,0.23845729,106300.0,106290.0,0.1256]
[1737740414692,0.23845729,106300.0,106290.0,0.1246]
[1737740415285,0.23845729,106300.0,106290.0,0.265723]
[1737740415434,0.09734729,106300.0,106290.0,0.265723]
[1737740415625,0.09734729,106300.0,106290.0,0.266723]
[1737740415842,0.09734729,106300.0,106290.0,0.1256]
[1737740416071,0.23845729,106300.0,106290.0,0.1256]
[1737740418438,0.09734729,106300.0,106290.0,0.1256]
[1737740418868,0.23845729,106300.0,106290.0,0.1256]
[1737740420861,0.23875508,106300.0,106290.0,0.1256]
[1737740421040,0.09764508,106300.0,106290.0,0.266723]
[1737740421692,0.23875508,106300.0,106290.0,0.266723]
[1737740421892,0.09764508,106300.0,106290.0,0.266723]
[1737740422236,0.00029779,106300.0,106290.0,0.266723]
[1737740423078,0.14140779,106300.0,106290.0,0.266723]
[1737740423281,0.00029779,106300.0,106290.0,0.266723]
[1737740423482,0.00033779,106300.0,106290.0,0.266723]
[1737740423681,0.23879508,106300.0,106290.0,0.1256]
[1737740423890,0.23879508,106300.0,106290.0,0.266723]
[1737740424443,0.23879508,106300.0,106290.0,0.1256]
[1737740425816,0.23879508,106300.0,106290.0,0.266723]
[1737740426501,0.09768508,106300.0,106290.0,0.266723]
[1737740427607,0.00033779,106300.0,106290.0,0.266723]
[1737740428035,0.02845581,106300.0,106290.0,0.266723]
[1737740429145,0.23879508,106300.0,106290.0,0.266723]
[1737740429355,0.23879508,106300.0,106290.0,0.1256]
[1737740429565,0.23879508,106300.0,106290.0,0.001]
[1737740429566,0.6608875,106300.0,106290.0,0.001]
[1737740429777,0.6838875,106300.0,106290.0,0.001]
[1737740430409,0.141123,106290.0,106280.0,0.0001418]
[1737740430615,0.23847029,106290.0,106280.0,0.0001418]
[1737740432237,0.23847029,106290.0,106280.0,0.0011418]
[1737740434498,0.24810451,106290.0,106280.0,0.0011418]
[1737740434812,0.24814451,106290.0,106280.0,0.0011418]
[1737740438307,0.27629092,106290.0,106280.0,0.0011418]
[1737740439760,0.97292114,106290.0,106280.0,0.0011418]
[1737740440179,0.96477473,106290.0,106280.0,0.0011418]
[1737740440385,0.97358488,106290.0,106280.0,0.0011418]
[1737740440604,0.67358488,106290.0,106280.0,0.0001418]
[1737740440809,0.57189246,106290.0,106280.0,0.0001418]
[1737740441019,0.47209246,106290.0,106280.0,0.0001418]
[1737740441202,0.44195466,106290.0,106280.0,0.0001418]
[1737740442291,0.46195466,106290.0,106280.0,0.0001418]
[1737740443389,0.44195466,106290.0,106280.0,0.0001418]
[1737740444038,0.46195466,106290.0,106280.0,0.0001418]
[1737740444223,0.56364708,106290.0,106280.0,0.0001418]
[1737740444422,0.54364708,106290.0,106280.0,0.0001418]
[1737740444774,0.56364708,106290.0,106280.0,0.0001418]
[1737740445935,0.57196708,106290.0,106280.0,0.0001418]
[1737740446662,0.61316242,106290.0,106280.0,0.0001418]
[1737740447241,0.60316242,106290.0,106280.0,0.0001418]
[1737740447437,0.61316242,106290.0,106280.0,0.0001418]
[1737740448681,0.89080213,106290.0,106280.0,0.0001418]
[1737740448901,1.06345484,106290.0,106280.0,8e-07]
[1737740449271,1.09399247,106290.0,106280.0,8e-07]
[1737740449473,0.67176242,106290.0,106280.0,8e-07]
[1737740450007,0.67276242,106290.0,106280.0,8e-07]
[1737740450410,0.67076242,106290.0,106280.0,8e-07]
[1737740450610,0.67576242,106290.0,106280.0,8e-07]
[1737740450821,0.69576242,106290.0,106280.0,8e-07]
[1737740451088,0.79745484,106290.0,106280.0,8e-07]
[1737740451292,1.08745484,106290.0,106280.0,8e-07]
[1737740452245,0.98576242,106290.0,106280.0,8e-07]
[1737740452796,0.99576242,106290.0,106280.0,8e-07]
[1737740453004,0.68576242,106290.0,106280.0,8e-07]
[1737740453232,0.99576242,106290.0,106280.0,8e-07]
[1737740453428,0.98576242,106290.0,106280.0,8e-07]
[1737740454211,1.08745484,106290.0,106280.0,8e-07]
[1737740456524,0.56416242,106290.0,106280.0,8e-07]
[1737740456739,0.58416242,106290.0,106280.0,8e-07]
[1737740456947,0.58716242,106290.0,106280.0,8e-07]
[1737740457125,0.33547,106290.0,106280.0,8e-07]
[1737740457739,0.46247,106290.0,106280.0,8e-07]
[1737740457948,0.48547,106290.0,106280.0,8e-07]
[1737740458147,0.57884242,106290.0,106280.0,8e-07]
[1737740458570,0.44595466,106290.0,106280.0,8e-07]
[1737740458789,0.42295466,106290.0,106280.0,0.0764008]
[1737740460574,0.27295466,106290.0,106280.0,0.0764008]
[1737740461216,0.42295466,106290.0,106280.0,0.0764008]
[1737740462796,0.40414451,106290.0,106280.0,0.0764008]
[1737740463612,0.40314451,106290.0,106280.0,0.0764008]
[1737740463976,0.39814451,106290.0,106280.0,0.0764008]
[1737740464456,0.40014451,106290.0,106280.0,0.0764008]
[1737740464798,0.52483693,106290.0,106280.0,8e-07]
[1737740464997,0.55603227,106290.0,106280.0,8e-07]
[1737740465200,1.07382777,106290.0,106280.0,8e-07]
[1737740465399,1.09382777,106290.0,106280.0,8e-07]
[1737740465627,2.6143654,106290.0,106280.0,8e-07]
[1737740465787,2.61466319,106290.0,106280.0,8e-07]
[1737740466180,1.12094319,106290.0,106280.0,8e-07]
[1737740466461,1.12594319,106290.0,106280.0,8e-07]
[1737740466725,1.09484011,106290.0,106280.0,8e-07]
[1737740466906,2.60484011,106290.0,106280.0,8e-07]
[1737740467061,2.60584011,106290.0,106280.0,8e-07]
[1737740467802,2.59584011,106290.0,106280.0,8e-07]
[1737740470275,2.58756011,106290.0,106280.0,8e-07]
[1737740470453,2.59584011,106290.0,106280.0,8e-07]
[1737740471025,1.09584011,106290.0,106280.0,8e-07]
[1737740472587,1.06530248,106290.0,106280.0,8e-07]
[1737740472950,0.58861006,106290.0,106280.0,8e-07]
[1737740473169,0.56861006,106290.0,106280.0,8e-07]
[1737740474154,0.56861006,106290.0,106280.0,0.0780008]
[1737740475311,0.4044423,106290.0,106280.0,0.0780008]
[1737740475995,0.4274423,106290.0,106280.0,0.0780008]
[1737740476182,0.52913472,106290.0,106280.0,0.0780008]
[1737740477232,0.2544423,106290.0,106280.0,0.2672368]